{"text_format":"3","workbook":"xlsx","n_sheets":1,"sheets":["GOD. EVIDENCIJA RADNOG VREMENA"],"not_rendered":{"defined_names":2},"read":"whole","date_system":"1900"}

{"sheet":"GOD. EVIDENCIJA RADNOG VREMENA","index":0,"n_rows":140,"n_cols":12,"rows_kept":140,"merged":[[0,1,1,11],[2,6,2,7],[2,8,2,9],[5,1,5,11],[39,1,39,11],[73,1,73,11],[107,1,107,11]]}
[null,"Kartica radnog vremena zaposlenika"]
[]
[null,"Ime i prezime zaposlenika:",null,"E-pošta:",null,null,"Ukupno za protekli dio godine:"]
[null,"Rukovoditelj:",null,"Telefonski broj:",null,null,"Redovno radno vrijeme:",{"$f":"SUM(C16,C27,C38,C50,C61,C72,C84,C95,C106,C118,C129,C140)","v":0},"Prekovremeni sati:",{"$f":"SUM(F16,F27,F38,F50,F61,F72,F84,F95,F106,F118,F129,F140)","v":0},"Zbroj:",{"$f":"SUM(H4:J4)","v":0}]
[]
[null,"Siječanj, veljača, ožujak      Kartica radnog vremena zaposlenika: dnevna, tjedna, mjesečna, godišnja"]
[null,"Siječanj","Tjedan 1","Prekovremeni rad","Tjedan 2","Prekovremeni rad ","Tjedan 3","Prekovremeni rad  ","Tjedan 4","Prekovremeni rad   ","Tjedan 5","Prekovremeni rad    "]
[null,"Ponedjeljak"]
[null,"Utorak"]
[null,"Srijeda"]
[null,"Četvrtak"]
[null,"Petak"]
[null,"Subota"]
[null,"Nedjelja"]
[null,"Ukupan broj sati tjedno",{"$f":"SUBTOTAL(109,Siječanj[Tjedan 1])","v":0},{"$f":"SUBTOTAL(109,Siječanj[Prekovremeni rad])","v":0},{"$f":"SUBTOTAL(109,Siječanj[Tjedan 2])","v":0},{"$f":"SUBTOTAL(109,Siječanj[[Prekovremeni rad ]])","v":0},{"$f":"SUBTOTAL(109,Siječanj[Tjedan 3])","v":0},{"$f":"SUBTOTAL(109,Siječanj[[Prekovremeni rad  ]])","v":0},{"$f":"SUBTOTAL(109,Siječanj[Tjedan 4])","v":0},{"$f":"SUBTOTAL(109,Siječanj[[Prekovremeni rad   ]])","v":0},{"$f":"SUBTOTAL(109,Siječanj[Tjedan 5])","v":0},{"$f":"SUBTOTAL(109,Siječanj[[Prekovremeni rad    ]])","v":0}]
[null,"Ukupno za siječanj: Redovno radno vrijeme",{"$f":"SUM(Siječanj[[#Totals],[Tjedan 1]],Siječanj[[#Totals],[Tjedan 2]],Siječanj[[#Totals],[Tjedan 3]],Siječanj[[#Totals],[Tjedan 4]],Siječanj[[#Totals],[Tjedan 5]])","v":0},"Ukupno za siječanj: Prekovremeni rad",null,{"$f":"SUM(Siječanj[[#Totals],[Prekovremeni rad]],Siječanj[[#Totals],[Prekovremeni rad ]],Siječanj[[#Totals],[Prekovremeni rad  ]],Siječanj[[#Totals],[Prekovremeni rad   ]],Siječanj[[#Totals],[Prekovremeni rad    ]])","v":0}]
[]
[null,"Veljača","Tjedan 1","Prekovremeni rad","Tjedan 2","Prekovremeni rad ","Tjedan 3","Prekovremeni rad  ","Tjedan 4","Prekovremeni rad   ","Tjedan 5","Prekovremeni rad    "]
[null,"Ponedjeljak"]
[null,"Utorak"]
[null,"Srijeda"]
[null,"Četvrtak"]
[null,"Petak"]
[null,"Subota"]
[null,"Nedjelja"]
[null,"Ukupan broj sati tjedno",{"$f":"SUBTOTAL(109,Veljača[Tjedan 1])","v":0},{"$f":"SUBTOTAL(109,Veljača[Prekovremeni rad])","v":0},{"$f":"SUBTOTAL(109,Veljača[Tjedan 2])","v":0},{"$f":"SUBTOTAL(109,Veljača[[Prekovremeni rad ]])","v":0},{"$f":"SUBTOTAL(109,Veljača[Tjedan 3])","v":0},{"$f":"SUBTOTAL(109,Veljača[[Prekovremeni rad  ]])","v":0},{"$f":"SUBTOTAL(109,Veljača[Tjedan 4])","v":0},{"$f":"SUBTOTAL(109,Veljača[[Prekovremeni rad   ]])","v":0},{"$f":"SUBTOTAL(109,Veljača[Tjedan 5])","v":0},{"$f":"SUBTOTAL(109,Veljača[[Prekovremeni rad    ]])","v":0}]
[null,"Ukupno za veljaču: Redovno radno vrijeme",{"$f":"SUM(Veljača[[#Totals],[Tjedan 1]],Veljača[[#Totals],[Tjedan 2]],Veljača[[#Totals],[Tjedan 3]],Veljača[[#Totals],[Tjedan 4]],Veljača[[#Totals],[Tjedan 5]])","v":0},"Ukupno za veljaču: Prekovremeni rad",null,{"$f":"SUM(Veljača[[#Totals],[Prekovremeni rad]],Veljača[[#Totals],[Prekovremeni rad ]],Veljača[[#Totals],[Prekovremeni rad  ]],Veljača[[#Totals],[Prekovremeni rad   ]],Veljača[[#Totals],[Prekovremeni rad    ]])","v":0}]
[]
[null,"Ožujak","Tjedan 1","Prekovremeni rad","Tjedan 2","Prekovremeni rad ","Tjedan 3","Prekovremeni rad  ","Tjedan 4","Prekovremeni rad   ","Tjedan 5","Prekovremeni rad    "]
[null,"Ponedjeljak"]
[null,"Utorak"]
[null,"Srijeda"]
[null,"Četvrtak"]
[null,"Petak"]
[null,"Subota"]
[null,"Nedjelja"]
[null,"Ukupan broj sati tjedno",{"$f":"SUBTOTAL(109,Ožujak[Tjedan 1])","v":0},{"$f":"SUBTOTAL(109,Ožujak[Prekovremeni rad])","v":0},{"$f":"SUBTOTAL(109,Ožujak[Tjedan 2])","v":0},{"$f":"SUBTOTAL(109,Ožujak[[Prekovremeni rad ]])","v":0},{"$f":"SUBTOTAL(109,Ožujak[Tjedan 3])","v":0},{"$f":"SUBTOTAL(109,Ožujak[[Prekovremeni rad  ]])","v":0},{"$f":"SUBTOTAL(109,Ožujak[Tjedan 4])","v":0},{"$f":"SUBTOTAL(109,Ožujak[[Prekovremeni rad   ]])","v":0},{"$f":"SUBTOTAL(109,Ožujak[Tjedan 5])","v":0},{"$f":"SUBTOTAL(109,Ožujak[[Prekovremeni rad    ]])","v":0}]
[null,"Ukupno za ožujak: Redovno radno vrijeme",{"$f":"SUM(Ožujak[[#Totals],[Tjedan 1]],Ožujak[[#Totals],[Tjedan 2]],Ožujak[[#Totals],[Tjedan 3]],Ožujak[[#Totals],[Tjedan 4]],Ožujak[[#Totals],[Tjedan 5]])","v":0},"Ukupno za ožujak: Prekovremeni rad",null,{"$f":"SUM(Ožujak[[#Totals],[Prekovremeni rad]],Ožujak[[#Totals],[Prekovremeni rad ]],Ožujak[[#Totals],[Prekovremeni rad  ]],Ožujak[[#Totals],[Prekovremeni rad   ]],Ožujak[[#Totals],[Prekovremeni rad    ]])","v":0}]
[]
[null,"Travanj, svibanj, lipanj      Kartica radnog vremena zaposlenika: dnevna, tjedna, mjesečna, godišnja"]
[null,"Travanj","Tjedan 1","Prekovremeni rad","Tjedan 2","Prekovremeni rad ","Tjedan 3","Prekovremeni rad  ","Tjedan 4","Prekovremeni rad   ","Tjedan 5","Prekovremeni rad    "]
[null,"Ponedjeljak"]
[null,"Utorak"]
[null,"Srijeda"]
[null,"Četvrtak"]
[null,"Petak"]
[null,"Subota"]
[null,"Nedjelja"]
[null,"Ukupan broj sati tjedno",{"$f":"SUBTOTAL(109,Travanj[Tjedan 1])","v":0},{"$f":"SUBTOTAL(109,Travanj[Prekovremeni rad])","v":0},{"$f":"SUBTOTAL(109,Travanj[Tjedan 2])","v":0},{"$f":"SUBTOTAL(109,Travanj[[Prekovremeni rad ]])","v":0},{"$f":"SUBTOTAL(109,Travanj[Tjedan 3])","v":0},{"$f":"SUBTOTAL(109,Travanj[[Prekovremeni rad  ]])","v":0},{"$f":"SUBTOTAL(109,Travanj[Tjedan 4])","v":0},{"$f":"SUBTOTAL(109,Travanj[[Prekovremeni rad   ]])","v":0},{"$f":"SUBTOTAL(109,Travanj[Tjedan 5])","v":0},{"$f":"SUBTOTAL(109,Travanj[[Prekovremeni rad    ]])","v":0}]
[null,"Ukupno za travanj: Redovno radno vrijeme",{"$f":"SUM(Travanj[[#Totals],[Tjedan 1]],Travanj[[#Totals],[Tjedan 2]],Travanj[[#Totals],[Tjedan 3]],Travanj[[#Totals],[Tjedan 4]],Travanj[[#Totals],[Tjedan 5]])","v":0},"Ukupno za travanj: Prekovremeni rad",null,{"$f":"SUM(Travanj[[#Totals],[Prekovremeni rad]],Travanj[[#Totals],[Prekovremeni rad ]],Travanj[[#Totals],[Prekovremeni rad  ]],Travanj[[#Totals],[Prekovremeni rad   ]],Travanj[[#Totals],[Prekovremeni rad    ]])","v":0}]
[]
[null,"Svibanj","Tjedan 1","Prekovremeni rad","Tjedan 2","Prekovremeni rad ","Tjedan 3","Prekovremeni rad  ","Tjedan 4","Prekovremeni rad   ","Tjedan 5","Prekovremeni rad    "]
[null,"Ponedjeljak"]
[null,"Utorak"]
[null,"Srijeda"]
[null,"Četvrtak"]
[null,"Petak"]
[null,"Subota"]
[null,"Nedjelja"]
[null,"Ukupan broj sati tjedno",{"$f":"SUBTOTAL(109,Svibanj[Tjedan 1])","v":0},{"$f":"SUBTOTAL(109,Svibanj[Prekovremeni rad])","v":0},{"$f":"SUBTOTAL(109,Svibanj[Tjedan 2])","v":0},{"$f":"SUBTOTAL(109,Svibanj[[Prekovremeni rad ]])","v":0},{"$f":"SUBTOTAL(109,Svibanj[Tjedan 3])","v":0},{"$f":"SUBTOTAL(109,Svibanj[[Prekovremeni rad  ]])","v":0},{"$f":"SUBTOTAL(109,Svibanj[Tjedan 4])","v":0},{"$f":"SUBTOTAL(109,Svibanj[[Prekovremeni rad   ]])","v":0},{"$f":"SUBTOTAL(109,Svibanj[Tjedan 5])","v":0},{"$f":"SUBTOTAL(109,Svibanj[[Prekovremeni rad    ]])","v":0}]
[null,"Ukupno za svibanj: Redovno radno vrijeme",{"$f":"SUM(Svibanj[[#Totals],[Tjedan 1]],Svibanj[[#Totals],[Tjedan 2]],Svibanj[[#Totals],[Tjedan 3]],Svibanj[[#Totals],[Tjedan 4]],Svibanj[[#Totals],[Tjedan 5]])","v":0},"Ukupno za svibanj: Prekovremeni rad",null,{"$f":"SUM(Svibanj[[#Totals],[Prekovremeni rad]],Svibanj[[#Totals],[Prekovremeni rad ]],Svibanj[[#Totals],[Prekovremeni rad  ]],Svibanj[[#Totals],[Prekovremeni rad   ]],Svibanj[[#Totals],[Prekovremeni rad    ]])","v":0}]
[]
[null,"Lipanj","Tjedan 1","Prekovremeni rad","Tjedan 2","Prekovremeni rad ","Tjedan 3","Prekovremeni rad  ","Tjedan 4","Prekovremeni rad   ","Tjedan 5","Prekovremeni rad    "]
[null,"Ponedjeljak"]
[null,"Utorak"]
[null,"Srijeda"]
[null,"Četvrtak"]
[null,"Petak"]
[null,"Subota"]
[null,"Nedjelja"]
[null,"Ukupan broj sati tjedno",{"$f":"SUBTOTAL(109,Lipanj[Tjedan 1])","v":0},{"$f":"SUBTOTAL(109,Lipanj[Prekovremeni rad])","v":0},{"$f":"SUBTOTAL(109,Lipanj[Tjedan 2])","v":0},{"$f":"SUBTOTAL(109,Lipanj[[Prekovremeni rad ]])","v":0},{"$f":"SUBTOTAL(109,Lipanj[Tjedan 3])","v":0},{"$f":"SUBTOTAL(109,Lipanj[[Prekovremeni rad  ]])","v":0},{"$f":"SUBTOTAL(109,Lipanj[Tjedan 4])","v":0},{"$f":"SUBTOTAL(109,Lipanj[[Prekovremeni rad   ]])","v":0},{"$f":"SUBTOTAL(109,Lipanj[Tjedan 5])","v":0},{"$f":"SUBTOTAL(109,Lipanj[[Prekovremeni rad    ]])","v":0}]
[null,"Ukupno za lipanj: Redovno radno vrijeme",{"$f":"SUM(Lipanj[[#Totals],[Tjedan 1]],Lipanj[[#Totals],[Tjedan 2]],Lipanj[[#Totals],[Tjedan 3]],Lipanj[[#Totals],[Tjedan 4]],Lipanj[[#Totals],[Tjedan 5]])","v":0},"Ukupno za lipanj: Prekovremeni rad",null,{"$f":"SUM(Lipanj[[#Totals],[Prekovremeni rad]],Lipanj[[#Totals],[Prekovremeni rad ]],Lipanj[[#Totals],[Prekovremeni rad  ]],Lipanj[[#Totals],[Prekovremeni rad   ]],Lipanj[[#Totals],[Prekovremeni rad    ]])","v":0}]
[]
[null,"Srpanj, kolovoz, rujan      Kartica radnog vremena zaposlenika: dnevna, tjedna, mjesečna, godišnja"]
[null,"Srpanj","Tjedan 1","Prekovremeni rad","Tjedan 2","Prekovremeni rad ","Tjedan 3","Prekovremeni rad  ","Tjedan 4","Prekovremeni rad   ","Tjedan 5","Prekovremeni rad    "]
[null,"Ponedjeljak"]
[null,"Utorak"]
[null,"Srijeda"]
[null,"Četvrtak"]
[null,"Petak"]
[null,"Subota"]
[null,"Nedjelja"]
[null,"Ukupan broj sati tjedno",{"$f":"SUBTOTAL(109,Srpanj[Tjedan 1])","v":0},{"$f":"SUBTOTAL(109,Srpanj[Prekovremeni rad])","v":0},{"$f":"SUBTOTAL(109,Srpanj[Tjedan 2])","v":0},{"$f":"SUBTOTAL(109,Srpanj[[Prekovremeni rad ]])","v":0},{"$f":"SUBTOTAL(109,Srpanj[Tjedan 3])","v":0},{"$f":"SUBTOTAL(109,Srpanj[[Prekovremeni rad  ]])","v":0},{"$f":"SUBTOTAL(109,Srpanj[Tjedan 4])","v":0},{"$f":"SUBTOTAL(109,Srpanj[[Prekovremeni rad   ]])","v":0},{"$f":"SUBTOTAL(109,Srpanj[Tjedan 5])","v":0},{"$f":"SUBTOTAL(109,Srpanj[[Prekovremeni rad    ]])","v":0}]
[null,"Ukupno za srpanj: Redovno radno vrijeme",{"$f":"SUM(Srpanj[[#Totals],[Tjedan 1]],Srpanj[[#Totals],[Tjedan 2]],Srpanj[[#Totals],[Tjedan 3]],Srpanj[[#Totals],[Tjedan 4]],Srpanj[[#Totals],[Tjedan 5]])","v":0},"Ukupno za srpanj: Prekovremeni rad",null,{"$f":"SUM(Srpanj[[#Totals],[Prekovremeni rad]],Srpanj[[#Totals],[Prekovremeni rad ]],Srpanj[[#Totals],[Prekovremeni rad  ]],Srpanj[[#Totals],[Prekovremeni rad   ]],Srpanj[[#Totals],[Prekovremeni rad    ]])","v":0}]
[]
[null,"Kolovoz","Tjedan 1","Prekovremeni rad","Tjedan 2","Prekovremeni rad ","Tjedan 3","Prekovremeni rad  ","Tjedan 4","Prekovremeni rad   ","Tjedan 5","Prekovremeni rad    "]
[null,"Ponedjeljak"]
[null,"Utorak"]
[null,"Srijeda"]
[null,"Četvrtak"]
[null,"Petak"]
[null,"Subota"]
[null,"Nedjelja"]
[null,"Ukupan broj sati tjedno",{"$f":"SUBTOTAL(109,Kolovoz[Tjedan 1])","v":0},{"$f":"SUBTOTAL(109,Kolovoz[Prekovremeni rad])","v":0},{"$f":"SUBTOTAL(109,Kolovoz[Tjedan 2])","v":0},{"$f":"SUBTOTAL(109,Kolovoz[[Prekovremeni rad ]])","v":0},{"$f":"SUBTOTAL(109,Kolovoz[Tjedan 3])","v":0},{"$f":"SUBTOTAL(109,Kolovoz[[Prekovremeni rad  ]])","v":0},{"$f":"SUBTOTAL(109,Kolovoz[Tjedan 4])","v":0},{"$f":"SUBTOTAL(109,Kolovoz[[Prekovremeni rad   ]])","v":0},{"$f":"SUBTOTAL(109,Kolovoz[Tjedan 5])","v":0},{"$f":"SUBTOTAL(109,Kolovoz[[Prekovremeni rad    ]])","v":0}]
[null,"Ukupno za kolovoz: Redovno radno vrijeme",{"$f":"SUM(Kolovoz[[#Totals],[Tjedan 1]],Kolovoz[[#Totals],[Tjedan 2]],Kolovoz[[#Totals],[Tjedan 3]],Kolovoz[[#Totals],[Tjedan 4]],Kolovoz[[#Totals],[Tjedan 5]])","v":0},"Ukupno za kolovoz: Prekovremeni rad",null,{"$f":"SUM(Kolovoz[[#Totals],[Prekovremeni rad]],Kolovoz[[#Totals],[Prekovremeni rad ]],Kolovoz[[#Totals],[Prekovremeni rad  ]],Kolovoz[[#Totals],[Prekovremeni rad   ]],Kolovoz[[#Totals],[Prekovremeni rad    ]])","v":0}]
[]
[null,"Rujan","Tjedan 1","Prekovremeni rad","Tjedan 2","Prekovremeni rad ","Tjedan 3","Prekovremeni rad  ","Tjedan 4","Prekovremeni rad   ","Tjedan 5","Prekovremeni rad    "]
[null,"Ponedjeljak"]
[null,"Utorak"]
[null,"Srijeda"]
[null,"Četvrtak"]
[null,"Petak"]
[null,"Subota"]
[null,"Nedjelja"]
[null,"Ukupan broj sati tjedno",{"$f":"SUBTOTAL(109,Rujan[Tjedan 1])","v":0},{"$f":"SUBTOTAL(109,Rujan[Prekovremeni rad])","v":0},{"$f":"SUBTOTAL(109,Rujan[Tjedan 2])","v":0},{"$f":"SUBTOTAL(109,Rujan[[Prekovremeni rad ]])","v":0},{"$f":"SUBTOTAL(109,Rujan[Tjedan 3])","v":0},{"$f":"SUBTOTAL(109,Rujan[[Prekovremeni rad  ]])","v":0},{"$f":"SUBTOTAL(109,Rujan[Tjedan 4])","v":0},{"$f":"SUBTOTAL(109,Rujan[[Prekovremeni rad   ]])","v":0},{"$f":"SUBTOTAL(109,Rujan[Tjedan 5])","v":0},{"$f":"SUBTOTAL(109,Rujan[[Prekovremeni rad    ]])","v":0}]
[null,"Ukupno za rujan: Redovno radno vrijeme",{"$f":"SUM(Rujan[[#Totals],[Tjedan 1]],Rujan[[#Totals],[Tjedan 2]],Rujan[[#Totals],[Tjedan 3]],Rujan[[#Totals],[Tjedan 4]],Rujan[[#Totals],[Tjedan 5]])","v":0},"Ukupno za rujan: Prekovremeni rad",null,{"$f":"SUM(Rujan[[#Totals],[Prekovremeni rad]],Rujan[[#Totals],[Prekovremeni rad ]],Rujan[[#Totals],[Prekovremeni rad  ]],Rujan[[#Totals],[Prekovremeni rad   ]],Rujan[[#Totals],[Prekovremeni rad    ]])","v":0}]
[]
[null,"Listopad, studeni, prosinac      Kartica radnog vremena zaposlenika: dnevna, tjedna, mjesečna, godišnja"]
[null,"Listopad","Tjedan 1","Prekovremeni rad","Tjedan 2","Prekovremeni rad ","Tjedan 3","Prekovremeni rad  ","Tjedan 4","Prekovremeni rad   ","Tjedan 5","Prekovremeni rad    "]
[null,"Ponedjeljak"]
[null,"Utorak"]
[null,"Srijeda"]
[null,"Četvrtak"]
[null,"Petak"]
[null,"Subota"]
[null,"Nedjelja"]
[null,"Ukupan broj sati tjedno",{"$f":"SUBTOTAL(109,Listopad[Tjedan 1])","v":0},{"$f":"SUBTOTAL(109,Listopad[Prekovremeni rad])","v":0},{"$f":"SUBTOTAL(109,Listopad[Tjedan 2])","v":0},{"$f":"SUBTOTAL(109,Listopad[[Prekovremeni rad ]])","v":0},{"$f":"SUBTOTAL(109,Listopad[Tjedan 3])","v":0},{"$f":"SUBTOTAL(109,Listopad[[Prekovremeni rad  ]])","v":0},{"$f":"SUBTOTAL(109,Listopad[Tjedan 4])","v":0},{"$f":"SUBTOTAL(109,Listopad[[Prekovremeni rad   ]])","v":0},{"$f":"SUBTOTAL(109,Listopad[Tjedan 5])","v":0},{"$f":"SUBTOTAL(109,Listopad[[Prekovremeni rad    ]])","v":0}]
[null,"Ukupno za listopad: Redovno radno vrijeme",{"$f":"SUM(Listopad[[#Totals],[Tjedan 1]],Listopad[[#Totals],[Tjedan 2]],Listopad[[#Totals],[Tjedan 3]],Listopad[[#Totals],[Tjedan 4]],Listopad[[#Totals],[Tjedan 5]])","v":0},"Ukupno za listopad: Prekovremeni rad",null,{"$f":"SUM(Listopad[[#Totals],[Prekovremeni rad]],Listopad[[#Totals],[Prekovremeni rad ]],Listopad[[#Totals],[Prekovremeni rad  ]],Listopad[[#Totals],[Prekovremeni rad   ]],Listopad[[#Totals],[Prekovremeni rad    ]])","v":0}]
[]
[null,"Studeni","Tjedan 1","Prekovremeni rad","Tjedan 2","Prekovremeni rad ","Tjedan 3","Prekovremeni rad  ","Tjedan 4","Prekovremeni rad   ","Tjedan 5","Prekovremeni rad    "]
[null,"Ponedjeljak"]
[null,"Utorak"]
[null,"Srijeda"]
[null,"Četvrtak"]
[null,"Petak"]
[null,"Subota"]
[null,"Nedjelja"]
[null,"Ukupan broj sati tjedno",{"$f":"SUBTOTAL(109,Studeni[Tjedan 1])","v":0},{"$f":"SUBTOTAL(109,Studeni[Prekovremeni rad])","v":0},{"$f":"SUBTOTAL(109,Studeni[Tjedan 2])","v":0},{"$f":"SUBTOTAL(109,Studeni[[Prekovremeni rad ]])","v":0},{"$f":"SUBTOTAL(109,Studeni[Tjedan 3])","v":0},{"$f":"SUBTOTAL(109,Studeni[[Prekovremeni rad  ]])","v":0},{"$f":"SUBTOTAL(109,Studeni[Tjedan 4])","v":0},{"$f":"SUBTOTAL(109,Studeni[[Prekovremeni rad   ]])","v":0},{"$f":"SUBTOTAL(109,Studeni[Tjedan 5])","v":0},{"$f":"SUBTOTAL(109,Studeni[[Prekovremeni rad    ]])","v":0}]
[null,"Ukupno za studeni: Redovno radno vrijeme",{"$f":"SUM(Studeni[[#Totals],[Tjedan 1]],Studeni[[#Totals],[Tjedan 2]],Studeni[[#Totals],[Tjedan 3]],Studeni[[#Totals],[Tjedan 4]],Studeni[[#Totals],[Tjedan 5]])","v":0},"Ukupno za studeni: Prekovremeni rad",null,{"$f":"SUM(Studeni[[#Totals],[Prekovremeni rad]],Studeni[[#Totals],[Prekovremeni rad ]],Studeni[[#Totals],[Prekovremeni rad  ]],Studeni[[#Totals],[Prekovremeni rad   ]],Studeni[[#Totals],[Prekovremeni rad    ]])","v":0}]
[]
[null,"Prosinac","Tjedan 1","Prekovremeni rad","Tjedan 2","Prekovremeni rad ","Tjedan 3","Prekovremeni rad  ","Tjedan 4","Prekovremeni rad   ","Tjedan 5","Prekovremeni rad    "]
[null,"Ponedjeljak"]
[null,"Utorak"]
[null,"Srijeda"]
[null,"Četvrtak"]
[null,"Petak"]
[null,"Subota"]
[null,"Nedjelja"]
[null,"Ukupan broj sati tjedno",{"$f":"SUBTOTAL(109,Prosinac[Tjedan 1])","v":0},{"$f":"SUBTOTAL(109,Prosinac[Prekovremeni rad])","v":0},{"$f":"SUBTOTAL(105,Prosinac[Tjedan 2])","v":0},{"$f":"SUBTOTAL(109,Prosinac[[Prekovremeni rad ]])","v":0},{"$f":"SUBTOTAL(109,Prosinac[Tjedan 3])","v":0},{"$f":"SUBTOTAL(109,Prosinac[[Prekovremeni rad  ]])","v":0},{"$f":"SUBTOTAL(109,Prosinac[Tjedan 4])","v":0},{"$f":"SUBTOTAL(109,Prosinac[[Prekovremeni rad   ]])","v":0},{"$f":"SUBTOTAL(109,Prosinac[Tjedan 5])","v":0},{"$f":"SUBTOTAL(109,Prosinac[[Prekovremeni rad    ]])","v":0}]
[null,"Ukupno za prosinac: Redovno radno vrijeme",{"$f":"SUM(Prosinac[[#Totals],[Tjedan 1]],Prosinac[[#Totals],[Tjedan 2]],Prosinac[[#Totals],[Tjedan 3]],Prosinac[[#Totals],[Tjedan 4]],Prosinac[[#Totals],[Tjedan 5]])","v":0},"Ukupno za prosinac: Prekovremeni rad",null,{"$f":"SUM(Prosinac[[#Totals],[Prekovremeni rad]],Prosinac[[#Totals],[Prekovremeni rad ]],Prosinac[[#Totals],[Prekovremeni rad  ]],Prosinac[[#Totals],[Prekovremeni rad   ]],Prosinac[[#Totals],[Prekovremeni rad    ]])","v":0}]